bitfinex/quotes_SOLUSD_20250118
["timestamp","ask_amount","ask_price","bid_price","bid_amount"]
[1737219253952,30.84154787,244.22,244.1,30.84154787]
[1737219254254,0.063,244.28,244.1,30.84154787]
[1737219254255,30.84154787,244.2,244.1,30.84154787]
[1737219254456,30.84154787,244.2,244.08,30.84154787]
[1737219254629,30.84154787,244.2,244.09,23.776884]
[1737219254835,30.84154787,244.15,244.06,30.84154787]
[1737219255237,30.84154787,244.13,244.02,30.84154787]
[1737219255435,30.84154787,244.13,243.96,0.03]
[1737219255436,30.84154787,244.09,244.0,30.84154787]
[1737219255652,30.84154787,244.15,244.04,30.84154787]
[1737219255943,30.84154787,244.13,244.04,30.84154787]
[1737219256357,30.84154787,244.11,244.02,30.84154787]
[1737219256532,20.70480597,244.25,244.02,30.84154787]
[1737219256533,0.76802619,244.24,244.1,30.84154787]
[1737219256727,30.84154787,244.29,244.17,30.84154787]
[1737219256948,4.0938,244.27,243.85,12.6892]
[1737219257152,0.76778079,244.26,243.97,4.0988]
[1737219257338,20.0,244.24,243.97,14.3459]
[1737219257539,0.7678404,244.23,243.97,14.3459]
[1737219257946,0.7678404,244.23,243.98,12.32]
[1737219258134,0.76790119,244.23,244.03,23.776884]
[1737219258444,34.93704787,244.17,244.08,23.776884]
[1737219258762,30.84154787,244.24,244.13,30.84154787]
[1737219259138,30.84154787,244.22,244.11,30.84154787]
[1737219259348,4.0941,244.25,243.93,20.497]
[1737219259349,30.84154787,244.18,244.07,30.84154787]
[1737219259546,30.84154787,244.12,244.03,30.84154787]
[1737219259737,30.84154787,244.14,244.03,30.84154787]
[1737219260053,30.84154787,244.07,243.96,0.03]
[1737219260463,30.84154787,244.11,244.01,30.84154787]
[1737219260636,4.0966,244.1,244.01,30.84154787]
[1737219260952,30.84154787,244.11,244.01,30.84154787]
[1737219261156,30.84154787,244.09,243.99,30.84154787]
[1737219261661,30.84154787,244.01,243.96,0.03]
[1737219261838,30.84154787,244.05,243.96,0.03]
[1737219262039,30.84154787,244.03,243.96,0.03]
[1737219262248,20.0,244.0,243.96,0.03]
[1737219262459,30.84154787,243.99,243.96,0.03]
[1737219262642,30.84154787,244.01,243.96,0.03]
[1737219262845,0.76835505,244.05,243.96,0.03]
[1737219263044,30.84154787,244.01,243.96,0.03]
[1737219263240,30.84154787,243.97,243.83,0.03]
[1737219263445,30.84154787,243.89,243.83,0.03]
[1737219264069,30.84154787,243.84,243.83,0.03]
[1737219264253,30.84154787,243.9,243.83,0.03]
[1737219264452,30.84154787,243.92,243.83,0.03]
[1737219264845,30.84154787,243.88,243.77,30.84154787]
[1737219265069,30.84154787,243.88,243.79,30.84154787]
[1737219265873,30.84154787,243.88,243.77,30.84154787]
[1737219266048,30.84154787,243.9,243.79,43.16154787]
[1737219266242,30.84154787,243.92,243.81,30.84154787]
[1737219266445,30.84154787,243.9,243.79,43.16154787]
[1737219266664,30.84154787,243.9,243.78,4.102]
[1737219266665,4.0973,244.06,243.89,12.32]
[1737219266868,30.84154787,244.03,243.92,30.84154787]
[1737219267054,30.84154787,244.01,243.9,23.776884]
[1737219267259,30.84154787,243.98,243.9,23.776884]
[1737219267456,30.84154787,243.92,243.81,30.84154787]
[1737219267970,30.84154787,243.96,243.85,30.84154787]
[1737219268154,4.0993,243.95,243.86,23.776884]
[1737219268467,4.0993,243.95,243.83,30.84154787]
[1737219268468,30.84154787,243.94,243.83,30.84154787]
[1737219268869,30.84154787,243.94,243.78,12.32]
[1737219268870,30.84154787,243.92,243.84,23.776884]
[1737219269174,30.84154787,243.94,243.84,23.776884]
[1737219269759,30.84154787,243.96,243.85,30.84154787]
[1737219269961,16.398414,243.99,243.92,23.776884]
[1737219270161,4.0963,244.12,243.98,23.776884]
[1737219270372,4.096,244.14,244.06,23.776884]
[1737219270572,16.386877,244.17,244.12,23.776884]
[1737219270874,16.386877,244.17,244.16,54.61843187]
[1737219271073,31.60921135,244.43,244.2,23.776884]
[1737219271275,30.84154787,244.41,244.29,30.84154787]
[1737219271451,30.84154787,244.41,244.17,12.3393]
[1737219271452,30.84154787,244.3,243.94,12.3393]
[1737219271651,30.84154787,244.22,244.1,30.84154787]
[1737219271855,0.76776654,244.39,244.15,30.84154787]
[1737219272049,30.84154787,244.27,244.17,30.84154787]
[1737219272277,30.84154787,244.24,244.13,30.84154787]
[1737219272572,0.76761034,244.35,244.15,30.84154787]
[1737219272777,0.70442106,244.38,244.28,30.84154787]
[1737219272959,5.69523507,244.48,244.24,30.84154787]
[1737219273164,4.0923,244.42,244.12,19.1341]
[1737219273368,1.4718503,244.41,244.12,19.1341]
[1737219273680,0.70442106,244.4,244.12,19.1341]
[1737219273971,0.76741667,244.39,244.15,20.0]
[1737219274184,30.84154787,244.33,244.22,30.84154787]
[1737219274354,30.84154787,244.39,244.28,30.84154787]
[1737219274556,30.84154787,244.39,244.2,30.84154787]
[1737219274557,30.84154787,244.45,244.33,20.0]
[1737219274862,0.063,244.49,244.37,30.84154787]
[1737219274863,30.84154787,244.48,244.37,30.84154787]
[1737219275058,0.063,244.49,244.39,30.84154787]
[1737219275284,30.84154787,244.48,244.37,30.84154787]
[1737219275454,30.84154787,244.46,244.37,30.75098439]
[1737219275650,30.84154787,244.46,244.36,30.84154787]
[1737219275875,30.84154787,244.44,244.34,30.84154787]
[1737219276062,30.84154787,244.46,244.34,30.84154787]
[1737219276263,4.1532,244.49,244.44,30.84154787]
[1737219276264,0.063,244.49,244.44,30.84154787]
[1737219276566,0.063,244.49,244.48,30.84154787]
[1737219276963,0.063,244.49,244.36,30.84154787]
[1737219277577,0.063,244.49,244.41,30.84154787]
[1737219277771,0.063,244.49,244.45,30.84154787]
[1737219278080,0.063,244.49,244.44,4.0909]
[1737219278259,0.063,244.49,244.47,30.84154787]
[1737219278795,30.90454787,244.49,244.39,30.84154787]
[1737219278965,0.063,244.49,244.39,30.84154787]
[1737219279281,0.063,244.49,244.47,30.84154787]
[1737219279577,0.0001,244.49,244.47,30.84154787]
[1737219279760,0.0001,244.5,244.49,20.0]
[1737219279962,0.0001,244.5,244.49,50.84154787]
[1737219280170,0.0001,244.5,244.49,54.93164787]
[1737219281075,30.84154787,244.67,244.49,54.93164787]
[1737219281268,30.84154787,244.65,244.53,30.84154787]
[1737219281975,30.84154787,244.65,244.55,30.84154787]
[1737219282173,30.84154787,244.65,244.56,4.0889]
[1737219282483,0.063,244.74,244.64,20.0]
[1737219282665,30.90454787,244.74,244.65,30.84154787]
[1737219282855,0.063,244.74,244.68,30.84154787]
[1737219283055,1.59711421,244.84,244.58,1.63617142]
[1737219283254,0.76599425,244.83,244.66,30.84154787]
[1737219283453,0.76593545,244.86,244.64,30.84154787]
[1737219283678,0.76593545,244.86,244.56,14.3113]
[1737219283679,30.84154787,244.69,244.6,30.84154787]
[1737219283981,30.84154787,244.71,244.62,30.84154787]
[1737219284180,30.84154787,244.73,244.62,30.84154787]
[1737219284584,30.84154787,244.73,244.64,30.84154787]
[1737219284880,30.84154787,244.77,244.68,30.84154787]
[1737219285087,30.84154787,244.71,244.62,30.84154787]
[1737219285258,30.84154787,244.73,244.64,30.84154787]
[1737219285460,30.84154787,244.82,244.71,30.84154787]
[1737219285678,32.45135567,244.84,244.73,30.84154787]
[1737219285869,0.76574745,244.94,244.79,30.84154787]
[1737219286072,0.063,245.05,244.84,30.84154787]
[1737219286073,1.6511636,244.9,244.84,30.84154787]
[1737219286294,1.6511636,244.9,244.82,30.84154787]
[1737219286295,0.063,244.9,244.82,30.84154787]
[1737219286485,30.84154787,244.88,244.78,30.84154787]
[1737219286870,30.84154787,244.82,244.72,30.84154787]
[1737219287075,30.84154787,244.84,244.74,30.84154787]
[1737219287278,30.84154787,244.84,244.69,4.0868]
[1737219287591,30.84154787,244.84,244.73,30.84154787]
[1737219287793,30.84154787,244.82,244.71,50.84154787]
[1737219287968,30.84154787,244.8,244.71,30.84154787]
[1737219288175,30.84154787,244.78,244.68,75.02154787]
[1737219288677,30.84154787,244.8,244.7,30.84154787]
[1737219288873,30.84154787,244.82,244.72,30.84154787]
[1737219289066,4.0843,244.84,244.68,48.2668]
[1737219289067,30.84154787,244.8,244.7,30.84154787]
[1737219289275,30.84154787,244.76,244.68,44.18]
[1737219289482,30.84154787,244.78,244.68,75.02154787]
[1737219289774,30.84154787,244.78,244.7,30.84154787]
[1737219290083,30.84154787,244.74,244.68,44.18]
[1737219290288,30.84154787,244.69,244.62,2.0]
[1737219290491,30.84154787,244.68,244.62,2.0]
[1737219290691,30.84154787,244.7,244.62,2.0]
[1737219290994,30.84154787,244.63,244.62,2.0]
[1737219291487,30.84154787,244.52,244.42,30.84154787]
[1737219291689,0.76647616,244.67,244.32,30.84154787]
[1737219291690,30.84154787,244.47,244.41,16.34896]
[1737219291884,30.84154787,244.49,244.41,16.34896]
[1737219292087,30.84154787,244.49,244.38,34.93344787]
[1737219292592,4.85648008,244.53,244.35,30.84154787]
[1737219292593,30.84154787,244.45,244.35,30.84154787]
[1737219292778,30.84154787,244.43,244.33,30.84154787]
[1737219293094,4.85648008,244.53,244.3,12.32]
[1737219293296,30.84154787,244.42,244.32,30.84154787]
[1737219293498,30.84154787,244.42,244.3,30.84154787]
[1737219293692,30.84154787,244.38,244.28,30.84154787]
[1737219294074,30.84154787,244.44,244.34,30.84154787]
[1737219294299,30.84154787,244.54,244.42,43.16154787]
[1737219294477,30.84154787,244.6,244.5,43.16154787]
[1737219294674,6.0228,244.79,244.32,30.84154787]
[1737219294675,16.349422,244.72,244.44,13.1761]
[1737219294885,16.349422,244.72,244.58,30.84154787]
[1737219295194,30.84154787,244.66,244.56,30.84154787]
[1737219295371,30.84154787,244.65,244.54,30.84154787]
[1737219295574,30.84154787,244.59,244.44,13.1761]
[1737219295898,30.84154787,244.61,244.52,30.84154787]
[1737219296195,30.84154787,244.57,244.32,13.1761]
[1737219296378,30.84154787,244.63,244.52,30.84154787]
[1737219296571,30.84154787,244.58,244.48,30.84154787]
[1737219296779,0.76659087,244.57,244.33,10.2316]
[1737219296980,30.84154787,244.49,244.39,30.84154787]
[1737219297183,30.84154787,244.55,244.43,30.84154787]
[1737219297499,30.84154787,244.59,244.49,43.16154787]
[1737219297808,30.84154787,244.59,244.44,30.84154787]
[1737219297809,30.84154787,244.61,244.51,30.84154787]
[1737219298477,30.84154787,244.68,244.58,30.84154787]
[1737219298806,30.84154787,244.7,244.6,30.84154787]
[1737219299686,30.84154787,244.74,244.66,30.84154787]
[1737219299902,4.0856,244.76,244.66,30.84154787]
[1737219299903,34.92714787,244.76,244.66,30.84154787]
[1737219300082,30.84154787,244.74,244.62,30.84154787]
[1737219300276,30.84154787,244.74,244.64,30.84154787]
[1737219300477,16.342247,244.84,244.67,30.84154787]
[1737219300677,30.84154787,244.76,244.67,30.84154787]
[1737219300895,16.342247,244.84,244.57,30.84154787]
[1737219300896,30.84154787,244.68,244.57,30.84154787]
[1737219301103,30.84154787,244.62,244.51,30.84154787]
[1737219301279,30.84154787,244.66,244.52,16.342354]
[1737219301478,30.84154787,244.68,244.57,30.84154787]
[1737219301784,10.2162,244.71,244.57,30.84154787]
[1737219301989,10.2162,244.71,244.47,14.3166]
[1737219301990,30.84154787,244.7,244.59,30.84154787]
[1737219302178,30.84154787,244.68,244.59,30.84154787]
[1737219302680,0.70442106,244.75,244.6,13.1761]
[1737219302896,0.0001,244.9,244.78,32.32]
[1737219303197,0.063,245.05,244.9,43.16154787]
[1737219303373,0.76463812,245.34,245.18,30.84154787]
[1737219303577,1.72979251,245.3,245.28,30.84154787]
[1737219303778,9.251e-05,245.3,245.29,4.0768]
[1737219303978,30.84154787,245.49,245.29,4.0768]
[1737219304294,4.0733,245.5,245.19,6.5299]
[1737219304295,0.76374835,245.48,245.38,30.84154787]
[1737219304491,0.7639949,245.47,245.38,30.84154787]
[1737219304687,4.0733,245.5,245.42,30.84154787]
[1737219305178,30.84154787,245.52,245.25,14.271]
[1737219305179,0.063,245.55,245.48,30.84154787]
[1737219305379,30.90454787,245.55,245.46,30.84154787]
[1737219305580,0.063,245.55,245.47,30.84154787]
[1737219305775,0.063,245.55,245.52,30.84154787]
[1737219306002,0.063,245.55,245.5,30.84154787]
[1737219306204,0.063,245.55,245.34,12.32]
[1737219306500,4.0665,245.92,245.55,12.32]
[1737219306699,0.03584193,245.76,245.72,20.0]
[1737219306875,0.03584193,245.76,245.57,0.063]
[1737219307080,0.03584193,245.76,245.75,61.68309574]
[1737219307301,1.59048602,245.94,245.75,61.68309574]
[1737219307480,1.59048602,245.94,245.87,30.84154787]
[1737219307676,0.063,245.95,245.87,34.88658023]
[1737219307880,0.76217463,245.99,245.69,13.1761]
[1737219308099,30.84154787,245.97,245.87,30.84154787]
[1737219308302,30.84154787,246.0,245.89,30.84154787]
[1737219308479,30.84154787,246.01,245.91,30.84154787]
[1737219308679,30.84154787,245.97,245.85,30.84154787]
[1737219308879,0.76241545,246.07,245.87,30.84154787]
[1737219309178,31.54596893,246.07,245.95,30.84154787]
[1737219309385,30.84154787,246.01,245.74,6.5299]
[1737219309601,30.84154787,246.01,245.93,20.0]
[1737219309906,30.84154787,246.02,245.91,30.84154787]
[1737219310095,4.0624,246.16,245.97,30.84154787]
[1737219310399,4.0624,246.16,245.89,12.32]
[1737219310400,30.84154787,246.02,245.76,10.1724]
[1737219310704,30.84154787,246.04,245.92,30.84154787]
[1737219310896,30.84154787,245.96,245.86,30.84154787]
[1737219311081,30.84154787,245.94,245.82,30.84154787]
[1737219311396,30.84154787,245.88,245.77,30.84154787]
[1737219311598,30.84154787,245.9,245.79,30.84154787]
[1737219311783,30.84154787,245.94,245.83,30.84154787]
[1737219311982,34.90754787,245.94,245.83,30.84154787]
[1737219312185,34.90754787,245.94,245.81,30.84154787]
[1737219312407,20.37296118,246.41,245.82,44.0]
[1737219312701,30.84154787,246.11,246.0,30.84154787]
[1737219313089,30.84154787,246.15,246.07,20.0]
[1737219313290,30.84154787,246.15,246.04,30.84154787]
[1737219313492,30.84154787,246.15,246.07,20.0]
[1737219313698,30.84154787,246.27,246.14,30.84154787]
[1737219313999,30.84154787,246.29,246.18,30.84154787]
[1737219314198,14.97028813,246.32,246.13,30.84154787]
[1737219314378,30.84154787,246.22,246.03,4.0644]
[1737219314584,0.76128316,246.31,246.0,17.241]
[1737219314786,0.76128316,246.31,246.0,27.4036]
[1737219314979,20.0,246.29,245.86,13.1761]
[1737219315194,0.76174597,246.28,245.88,12.32]
[1737219315399,0.76172373,246.31,245.88,12.32]
[1737219315591,30.84154787,246.21,246.1,30.84154787]
[1737219315806,30.84154787,246.23,246.15,20.0]
[1737219316000,30.84154787,246.29,246.21,20.0]
[1737219316201,4.06,246.3,246.2,30.84154787]
[1737219316498,4.06,246.3,246.12,30.84154787]
[1737219316499,34.90124787,246.33,246.22,30.84154787]
[1737219316687,4.0597,246.33,246.24,30.84154787]
[1737219316886,30.84154787,246.29,246.18,30.84154787]
[1737219317097,14.2086,246.33,246.12,30.84154787]
[1737219317098,30.84154787,246.31,246.22,30.84154787]
[1737219317304,30.0,246.24,246.2,30.84154787]
[1737219317598,30.0,246.24,246.23,30.84154787]
[1737219317780,4.0592,246.35,246.26,20.0]
[1737219317987,4.0592,246.35,246.26,50.84154787]
[1737219318199,30.0,246.27,246.26,20.0]
[1737219318408,30.0,246.27,246.26,50.84154787]
[1737219318609,0.76100233,246.42,246.26,50.84154787]
[1737219318610,0.76100233,246.42,246.26,81.68309574]
[1737219318820,0.063,246.58,246.41,30.84154787]
[1737219318984,0.063,246.58,246.55,30.84154787]
[1737219319188,0.063,246.58,246.57,30.84154787]
[1737219319607,0.063,246.58,246.36,30.84154787]
[1737219319910,0.063,246.58,246.54,30.84154787]
[1737219320102,0.063,246.58,246.56,30.84154787]
[1737219320494,0.063,246.58,246.54,30.84154787]
[1737219320706,0.063,246.58,246.4,10.146]
[1737219320903,0.063,246.58,246.57,30.84154787]
[1737219321092,0.063,246.58,246.48,30.84154787]
[1737219321400,0.063,246.58,246.51,20.0]
[1737219321711,0.063,246.58,246.52,30.84154787]
[1737219321896,0.063,246.58,246.54,30.84154787]
[1737219322085,0.063,246.58,246.56,30.84154787]
[1737219322287,4.0556,246.57,246.51,30.84154787]
[1737219322491,0.063,246.58,246.55,30.84154787]
[1737219322688,0.063,246.58,246.57,20.0]
[1737219323094,0.063,246.58,246.51,20.0]
[1737219323405,0.063,246.58,246.52,30.84154787]
[1737219323599,4.0556,246.57,246.5,30.84154787]
[1737219323781,30.84154787,246.55,246.15,5.9198]
[1737219324085,4.0563,246.53,246.38,30.84154787]
[1737219324285,4.0556,246.57,246.42,30.84154787]
[1737219324604,0.76063736,246.56,246.38,30.84154787]
[1737219324787,30.84154787,246.49,246.38,30.84154787]
[1737219324995,30.84154787,246.5,246.39,30.84154787]
[1737219325517,30.84154787,246.52,246.41,30.84154787]
[1737219326011,30.84154787,246.5,246.39,30.84154787]
[1737219326212,30.84154787,246.47,246.36,4.0591]
[1737219326402,30.84154787,246.43,246.33,30.84154787]
[1737219326605,30.84154787,246.45,246.25,24.59]
[1737219326796,30.84154787,246.43,246.32,30.84154787]
[1737219326994,30.84154787,246.45,246.34,30.84154787]
[1737219327510,30.84154787,246.47,246.36,30.84154787]
[1737219327708,30.84154787,246.47,246.17,12.32]
[1737219327709,4.0566,246.51,246.39,30.84154787]
[1737219327912,30.84154787,246.5,246.42,20.0]
[1737219328099,30.84154787,246.5,246.31,10.1496]
[1737219328100,30.84154787,246.56,246.48,20.0]
[1737219328293,30.84154787,246.56,246.45,30.84154787]
[1737219328604,30.84154787,246.5,246.39,30.84154787]
[1737219328796,30.84154787,246.45,246.35,12.32]
[1737219328992,30.84154787,246.53,246.42,30.84154787]
[1737219329197,30.84154787,246.44,246.34,30.84154787]
[1737219329398,30.84154787,246.44,246.32,30.84154787]
[1737219329706,30.84154787,246.44,246.33,30.84154787]
[1737219329893,30.84154787,246.48,246.38,30.84154787]
[1737219330094,34.89864787,246.48,246.41,20.0]
[1737219330499,34.89864787,246.48,246.36,30.84154787]
[1737219330700,34.89864787,246.48,246.38,30.84154787]
[1737219330916,34.89864787,246.48,246.41,20.0]
[1737219331116,30.84154787,246.44,246.34,30.84154787]
[1737219331292,30.84154787,246.36,246.21,30.84154787]
[1737219331605,30.84154787,246.23,246.0,0.03]
[1737219331810,23.776884,246.21,246.0,0.03]
[1737219332113,14.2177,246.17,245.92,4.0662]
[1737219332309,0.76186472,246.16,245.8,4.0683]
[1737219332611,30.84154787,245.81,245.75,0.03]
[1737219332814,30.84154787,245.78,245.75,0.03]
[1737219333008,30.84154787,245.82,245.75,0.03]
[1737219333316,30.84154787,245.76,245.75,0.03]
[1737219333819,0.76293321,245.87,245.75,0.03]
[1737219334013,30.84154787,245.85,245.75,30.87154787]
[1737219334220,1.63415836,246.01,245.84,30.84154787]
[1737219334518,30.84154787,245.96,245.85,19.52753523]
[1737219334716,30.84154787,246.12,245.94,30.84154787]
[1737219334717,34.90604787,246.04,245.94,30.84154787]
[1737219335617,4.0627,246.14,246.02,30.84154787]
[1737219335808,30.84154787,246.21,246.09,30.84154787]
[1737219336017,0.76160088,246.2,245.85,12.32]
[1737219336336,30.84154787,246.11,245.85,12.32]
[1737219336518,30.84154787,246.14,246.04,30.84154787]
[1737219336703,30.84154787,246.08,245.98,30.84154787]
[1737219336903,30.84154787,246.08,245.91,20.0]
[1737219337227,30.84154787,246.12,246.03,20.0]
[1737219337414,0.7618058,246.23,246.11,20.0]
[1737219337615,30.84154787,246.26,246.16,30.84154787]
[1737219337817,30.84154787,246.28,246.18,30.84154787]
[1737219338017,30.84154787,246.26,246.17,30.84154787]
[1737219338210,30.84154787,246.19,246.0,30.84154787]
[1737219338522,0.76157487,246.31,246.03,20.0]
[1737219338710,4.0597,246.32,246.03,32.32]
[1737219338912,0.76135063,246.52,246.03,32.32]
[1737219339121,10.143,246.48,246.03,32.32]
[1737219339311,10.143,246.48,246.2,30.84154787]
[1737219339312,30.84154787,246.31,246.2,30.84154787]
[1737219339516,30.84154787,246.29,246.18,30.84154787]
[1737219339814,30.84154787,246.26,246.14,30.84154787]
[1737219340024,0.76140515,246.35,246.24,30.84154787]
[1737219340025,0.76149824,246.35,246.24,30.84154787]
[1737219340318,30.84154787,246.3,246.19,30.84154787]
[1737219340521,30.84154787,246.26,246.15,30.84154787]
[1737219340715,30.84154787,246.24,246.13,30.84154787]
[1737219340918,30.84154787,246.21,246.11,30.84154787]
[1737219341217,54.61843187,246.19,246.09,30.84154787]
[1737219341517,30.84154787,246.14,246.05,30.84154787]
[1737219341723,30.84154787,246.16,246.07,30.84154787]
[1737219342022,30.84154787,246.14,246.05,30.84154787]
[1737219342225,4.063,246.12,246.05,30.84154787]
[1737219342401,0.76191954,246.11,246.03,30.84154787]
[1737219342597,4.063,246.12,246.03,24.26551787]
[1737219342916,0.76189305,246.11,246.02,30.84154787]
[1737219343114,23.776884,246.1,246.02,30.84154787]
[1737219343419,23.776884,246.03,245.86,30.84154787]
[1737219343629,30.84154787,245.95,245.84,30.84154787]
[1737219343919,54.61843187,245.93,245.83,30.84154787]
[1737219344100,54.61843187,245.93,245.52,204.05409516]
[1737219344101,23.776884,245.84,245.56,1.6537111]
[1737219344306,30.84154787,245.79,245.69,30.84154787]
[1737219344509,0.76297967,245.78,245.69,30.84154787]
[1737219344702,30.84154787,245.77,245.67,30.84154787]
[1737219344914,30.84154787,245.77,245.52,30.84154787]
[1737219344915,4.068,245.82,245.73,30.84154787]
[1737219345123,30.84154787,245.85,245.77,30.84154787]
[1737219345313,30.84154787,245.89,245.79,30.84154787]
[1737219345517,30.84154787,245.94,245.83,30.84154787]
[1737219345722,30.84154787,245.85,245.77,30.84154787]
[1737219346018,15.84663557,245.98,245.64,43.16154787]
[1737219346019,30.84154787,245.81,245.71,30.84154787]
[1737219346222,30.84154787,245.89,245.79,30.84154787]
[1737219346718,0.76263135,245.95,245.81,30.84154787]
[1737219346921,30.84154787,245.9,245.81,30.84154787]
[1737219347120,30.84154787,245.94,245.83,30.84154787]
[1737219347308,30.84154787,245.92,245.83,30.84154787]
[1737219347718,30.84154787,245.94,245.83,30.84154787]
[1737219347900,31.60401593,245.94,245.83,30.84154787]
[1737219348106,30.84154787,245.86,245.77,30.84154787]
[1737219348306,4.0668,245.89,245.79,30.84154787]
[1737219348525,4.0668,245.89,245.68,30.84154787]
[1737219348526,30.84154787,245.81,245.68,30.84154787]
[1737219348725,30.84154787,245.74,245.64,30.84154787]
[1737219349104,0.76303683,245.8,245.68,30.84154787]
[1737219349410,30.84154787,245.8,245.68,30.84154787]
[1737219349616,23.776884,245.82,245.68,30.84154787]
[1737219349817,30.84154787,245.75,245.64,30.84154787]
[1737219350027,30.84154787,245.76,245.66,30.84154787]
[1737219350231,30.84154787,245.74,245.55,12.32]
[1737219350526,34.91054787,245.76,245.65,30.84154787]
[1737219350831,0.76306711,245.75,245.65,30.84154787]
[1737219351010,0.70442106,245.88,245.73,30.84154787]
[1737219351211,0.56011973,245.99,245.79,30.84154787]
[1737219351506,30.84154787,245.88,245.77,30.84154787]
[1737219351711,30.84154787,245.9,245.79,30.84154787]
[1737219351918,0.56011973,245.89,245.8,0.61008764]
[1737219352113,30.84154787,245.84,245.75,0.03]
[1737219352322,16.267016,246.06,245.83,61.68309574]
[1737219352631,30.84154787,245.97,245.84,0.60963749]
[1737219352833,30.84154787,245.97,245.75,0.63997878]
[1737219353125,30.84154787,245.94,245.81,30.84154787]
[1737219353324,30.84154787,246.01,245.89,30.84154787]
[1737219353505,0.70442106,246.05,245.97,30.84154787]
[1737219353710,30.84154787,246.14,246.03,30.84154787]
[1737219353929,30.84154787,246.11,245.93,0.60957578]
[1737219354127,30.84154787,246.09,245.98,30.84154787]
[1737219354327,5.72969298,246.16,246.02,30.84154787]
[1737219354632,30.84154787,246.05,245.94,30.84154787]
[1737219354936,23.776884,246.04,245.92,30.84154787]
[1737219355312,30.84154787,245.95,245.83,30.84154787]
[1737219355512,30.84154787,246.12,245.75,0.03]
[1737219355513,30.84154787,245.93,245.81,30.84154787]
[1737219355731,30.84154787,245.93,245.82,0.61012022]
[1737219356108,30.84154787,245.95,245.83,30.84154787]
[1737219356309,4.066,245.94,245.84,0.61001678]
[1737219356722,30.84154787,245.88,245.76,30.84154787]
[1737219356908,30.84154787,245.86,245.75,0.03]
[1737219357110,30.84154787,245.86,245.76,30.84154787]
[1737219357324,30.84154787,245.86,245.77,0.61024014]
[1737219357626,1.66689515,245.96,245.84,30.84154787]
[1737219357627,36.57414302,245.96,245.84,30.84154787]
[1737219357812,10.1603,246.06,245.91,30.84154787]
[1737219358019,30.84154787,245.99,245.87,30.84154787]
[1737219358219,30.84154787,246.01,245.9,30.84154787]
[1737219358428,4.065,246.0,245.9,30.84154787]
[1737219359037,34.90494787,246.1,245.98,30.84154787]
[1737219359234,30.84154787,246.08,245.98,30.84154787]
[1737219359421,31.54596893,246.15,246.04,30.84154787]
[1737219359621,4.063,246.13,246.04,30.84154787]
[1737219359924,0.70442106,246.15,246.07,30.84154787]
[1737219360132,4.76702106,246.15,246.08,0.6094402]
[1737219360434,30.84154787,246.14,246.01,0.6094402]
[1737219360617,30.84154787,246.14,245.84,1.6363307]
[1737219360618,30.84154787,246.1,245.99,30.84154787]
[1737219360936,30.34154787,246.02,245.91,30.84154787]
[1737219361119,23.776884,246.11,245.92,0.60988144]
[1737219361312,30.84154787,246.02,245.92,0.60988144]
[1737219361512,30.84154787,246.04,245.93,30.84154787]
[1737219361726,30.84154787,246.06,245.95,30.84154787]
[1737219361930,30.84154787,246.04,245.93,30.84154787]
[1737219362120,30.84154787,246.0,245.94,0.60977738]
[1737219362320,30.84154787,246.0,245.9,0.60980927]
[1737219362822,23.776884,245.9,245.77,0.6098635]
[1737219363027,30.84154787,245.78,245.75,0.03]
[1737219363428,30.84154787,245.76,245.75,0.03]
[1737219363630,30.84154787,245.76,245.59,31.45195362]
[1737219363870,30.84154787,245.61,245.54,0.6105789]
[1737219364036,30.84154787,245.55,245.44,0.74105221]
[1737219364340,30.84154787,245.45,245.36,0.6108614]
[1737219364642,30.84154787,245.38,245.24,30.84154787]
[1737219364823,30.84154787,245.29,245.18,30.84154787]
[1737219365026,30.84154787,245.27,245.19,0.30686661]
[1737219365243,30.84154787,245.27,245.17,0.61165963]
[1737219365419,0.72199932,245.39,245.26,30.84154787]
[1737219365622,30.84154787,245.47,245.37,30.84154787]
[1737219365920,32.47096663,245.52,245.38,0.61116053]
[1737219366119,1.62941876,245.52,245.44,30.84154787]
[1737219366332,1.62941876,245.52,245.45,0.61093254]
[1737219366538,22.38632321,245.75,245.3,12.32]
[1737219366730,0.70442106,245.74,245.32,12.32]
[1737219367026,0.70442106,245.74,245.33,0.61097048]
[1737219367027,23.776884,245.72,245.33,0.61097048]
[1737219367233,0.72199932,245.71,245.25,6.93403112]
[1737219367534,30.84154787,245.61,245.5,30.84154787]
[1737219367737,1.42642038,245.71,245.48,30.84154787]
[1737219367913,30.84154787,245.62,245.51,30.84154787]
[1737219368113,30.84154787,245.68,245.57,4.18879032]